bitfinex/quotes_BTCUSD_20240902
["timestamp","ask_amount","ask_price","bid_price","bid_amount"]
[1725240734424,0.02935645,57652.0,57650.0,0.33706]
[1725240734857,0.03535645,57652.0,57650.0,0.33706]
[1725240735077,0.00813662,57652.0,57650.0,0.33706]
[1725240735292,0.00813662,57652.0,57651.0,0.173457]
[1725240735978,0.01713662,57652.0,57651.0,0.173457]
[1725240736201,0.00813662,57652.0,57651.0,0.173457]
[1725240736424,0.006,57652.0,57651.0,0.867287]
[1725240736642,0.006,57652.0,57651.0,0.868287]
[1725240736643,0.015,57652.0,57651.0,0.868287]
[1725240736875,0.0332174,57652.0,57651.0,0.867287]
[1725240737305,0.004,57652.0,57651.0,0.867287]
[1725240737553,0.01,57652.0,57651.0,1.214202]
[1725240737775,0.01,57652.0,57651.0,1.388202]
[1725240737993,0.004,57652.0,57651.0,1.388202]
[1725240738459,0.005,57652.0,57651.0,1.398202]
[1725240738689,0.001,57652.0,57651.0,1.398202]
[1725240738910,0.001779,57661.0,57651.0,1.398202]
[1725240738911,0.001779,57661.0,57660.0,0.52029]
[1725240739122,0.001779,57661.0,57660.0,0.68389]
[1725240739572,0.001779,57661.0,57660.0,1.37661]
[1725240740226,0.05202699,57679.0,57674.0,0.0741]
[1725240740443,0.173376,57678.0,57674.0,0.0741]
[1725240740886,0.173371,57680.0,57674.0,0.246487]
[1725240741105,0.173373,57679.0,57674.0,0.0731]
[1725240741337,0.10264858,57681.0,57677.0,0.520137]
[1725240741553,0.173359,57684.0,57674.0,0.0731]
[1725240741770,0.622187,57684.0,57678.0,0.173375]
[1725240742004,0.173361,57683.0,57678.0,0.145375]
[1725240742236,0.16146033,57682.0,57675.0,0.346768]
[1725240742461,0.16146033,57682.0,57678.0,0.346752]
[1725240742723,0.39872037,57686.0,57681.0,0.173365]
[1725240742724,0.16146033,57686.0,57681.0,0.173365]
[1725240742943,0.33481333,57686.0,57679.0,0.346744]
[1725240743177,0.33481333,57686.0,57662.0,0.0929]
[1725240743178,0.0209,57677.0,57662.0,0.0929]
[1725240743405,0.0209,57677.0,57666.0,0.50540786]
[1725240743406,0.16146033,57668.0,57666.0,0.50540786]
[1725240743631,0.173409,57667.0,57662.0,0.266323]
[1725240744107,0.16146033,57668.0,57663.0,0.25062]
[1725240744355,0.16146033,57668.0,57665.0,0.173414]
[1725240744611,0.33484233,57676.0,57671.0,0.173394]
[1725240744843,0.1,57675.0,57671.0,0.173396]
[1725240745079,0.273385,57675.0,57671.0,0.173396]
[1725240745332,0.273385,57675.0,57667.0,0.346815]
[1725240745333,0.173392,57673.0,57667.0,0.173408]
[1725240745834,0.33485433,57672.0,57667.0,0.173408]
[1725240746053,0.16146033,57672.0,57668.0,0.173406]
[1725240746268,0.173389,57674.0,57669.0,0.173402]
[1725240746517,0.1,57675.0,57666.0,0.01]
[1725240746518,0.173391,57673.0,57668.0,0.173404]
[1725240746727,0.273387,57675.0,57669.0,0.173403]
[1725240746950,0.273387,57675.0,57667.0,0.349817]
[1725240747178,0.1,57675.0,57671.0,0.175396]
[1725240747603,0.1,57675.0,57671.0,0.173396]
[1725240748274,0.273386,57675.0,57671.0,0.173396]
[1725240748699,0.273386,57675.0,57671.0,0.001]
[1725240749128,0.273386,57675.0,57671.0,0.002]
[1725240750481,0.173392,57673.0,57671.0,0.002]
[1725240751393,0.173394,57672.0,57671.0,0.002]
[1725240751618,0.33485433,57672.0,57671.0,0.001]
[1725240751836,0.33485433,57672.0,57671.0,0.005]
[1725240752048,0.68164233,57672.0,57671.0,0.007]
[1725240752468,0.68164233,57672.0,57671.0,0.005]
[1725240752678,0.68164233,57672.0,57671.0,0.009]
[1725240753094,0.68164233,57672.0,57671.0,0.004]
[1725240753276,0.68164233,57672.0,57671.0,0.009]
[1725240755556,1.14515494,57672.0,57671.0,0.009]
[1725240755761,1.02843033,57672.0,57671.0,0.009]
[1725240757237,0.68164233,57672.0,57671.0,0.009]
[1725240757454,0.100818,57675.0,57671.0,0.009]
[1725240757455,0.100818,57675.0,57671.0,0.1768]
[1725240757672,0.273389,57674.0,57671.0,0.1768]
[1725240758111,0.1,57674.0,57671.0,0.350197]
[1725240758334,0.000818,57675.0,57674.0,0.86694]
[1725240758564,0.000818,57675.0,57674.0,1.03454]
[1725240760116,0.000818,57675.0,57674.0,1.381316]
[1725240760799,0.000818,57675.0,57674.0,1.728092]
[1725240761022,0.000818,57675.0,57674.0,1.730092]
[1725240761713,0.000818,57675.0,57674.0,1.728092]
[1725240762558,0.000818,57675.0,57674.0,1.394316]
[1725240762758,0.000818,57675.0,57674.0,1.04754]
[1725240763646,0.000818,57675.0,57674.0,0.714764]
[1725240763869,0.000818,57675.0,57674.0,0.1946]
[1725240764268,0.000818,57675.0,57674.0,0.367988]
[1725240764758,0.000818,57675.0,57674.0,0.1946]
[1725240765000,0.000818,57675.0,57674.0,0.367988]
[1725240765892,0.174203,57675.0,57674.0,0.1022]
[1725240767017,0.000818,57675.0,57674.0,0.622364]
[1725240767235,0.000818,57675.0,57674.0,1.413616]
[1725240770564,0.000818,57675.0,57674.0,1.06684]
[1725240774348,0.000818,57675.0,57674.0,1.413616]
[1725240775913,0.000818,57675.0,57674.0,1.06684]
[1725240776365,0.000818,57675.0,57674.0,1.413616]
[1725240779675,0.000818,57675.0,57674.0,1.4145147]
[1725240781278,0.000818,57675.0,57674.0,0.6232627]
[1725240781490,0.000818,57675.0,57674.0,0.2012867]
[1725240781934,0.000818,57675.0,57674.0,0.5480627]
[1725240782144,0.173373,57680.0,57675.0,0.173382]
[1725240782145,0.17337,57680.0,57675.0,0.173382]
[1725240782379,0.346716,57684.0,57674.0,0.2012837]
[1725240782380,0.20057765,57679.0,57674.0,0.2012837]
[1725240782596,0.20057865,57679.0,57674.0,0.0278987]
[1725240782813,0.173373,57679.0,57674.0,0.5480557]
[1725240783023,0.173373,57679.0,57675.0,0.173384]
[1725240783265,0.173368,57681.0,57675.0,0.34677]
[1725240783482,0.173368,57681.0,57677.0,0.173379]
[1725240783708,0.17337,57680.0,57675.0,0.009]
[1725240783921,0.173358,57684.0,57676.0,0.519262]
[1725240784142,0.520061,57686.0,57678.0,0.34675]
[1725240784395,0.000817,57692.0,57678.0,0.34675]
[1725240784642,0.02720392,57683.0,57682.0,0.520092]
[1725240784907,0.173342,57690.0,57684.0,0.346715]
[1725240785131,0.027202,57689.0,57686.0,0.173351]
[1725240785799,0.027202,57689.0,57686.0,0.076]
[1725240786068,0.027202,57689.0,57688.0,0.173346]
[1725240786360,0.027202,57689.0,57688.0,0.95943]
[1725240786361,0.028202,57689.0,57688.0,0.95943]
[1725240786630,0.028202,57689.0,57688.0,1.382122]
[1725240786853,0.001,57689.0,57688.0,1.382122]
[1725240787549,0.001,57689.0,57688.0,1.03543]
[1725240788073,0.000817,57692.0,57691.0,0.173337]
[1725240788594,0.000817,57692.0,57691.0,0.520011]
[1725240788816,0.000817,57692.0,57691.0,0.519011]
[1725240789063,0.000817,57692.0,57684.0,0.346714]
[1725240789317,0.16227733,57692.0,57688.0,0.011]
[1725240789538,0.33561133,57692.0,57691.0,0.006]
[1725240789776,0.16227733,57692.0,57682.0,0.346723]
[1725240790027,0.33561233,57692.0,57691.0,0.009]
[1725240790489,0.68228033,57692.0,57691.0,0.009]
[1725240790713,0.70948028,57692.0,57691.0,0.009]
[1725240791183,0.70948028,57692.0,57691.0,0.016]
[1725240791633,0.70948028,57692.0,57691.0,0.009]
[1725240791861,0.02801695,57692.0,57691.0,0.009]
[1725240792080,0.02801695,57692.0,57691.0,0.017]
[1725240792526,0.02801695,57692.0,57691.0,0.009]
[1725240792748,0.02801695,57692.0,57691.0,0.013]
[1725240792968,0.20135095,57692.0,57691.0,0.013]
[1725240794905,0.54801895,57692.0,57691.0,0.013]
[1725240795131,1.00030128,57692.0,57691.0,0.013]
[1725240795373,0.65363328,57692.0,57691.0,0.013]
[1725240796732,0.81509361,57692.0,57691.0,0.013]
[1725240797458,0.70947928,57692.0,57691.0,0.013]
[1725240798401,0.002,57691.0,57667.0,0.7929]
[1725240798628,0.866925,57675.0,57669.0,0.0966]
[1725240798867,0.866925,57675.0,57660.0,0.346856]
[1725240798868,0.520155,57675.0,57667.0,0.0966]
[1725240800013,0.520155,57675.0,57667.0,0.270009]
[1725240800670,0.54736239,57675.0,57674.0,0.0018987]
[1725240801133,0.54736239,57675.0,57674.0,0.0008987]
[1725240801376,0.58293322,57675.0,57674.0,0.0008987]
[1725240801617,1.29898736,57675.0,57674.0,0.0008987]
[1725240801851,2.12879889,57675.0,57674.0,0.0008987]
[1725240802072,1.228758,57672.0,57651.0,0.1731]
[1725240802316,1.9912407,57672.0,57658.0,0.173435]
[1725240802536,1.83456333,57672.0,57656.0,0.173441]
[1725240802773,1.91752429,57672.0,57654.0,0.173447]
[1725240802996,1.83656333,57672.0,57651.0,0.86692]
[1725240803220,1.91952429,57672.0,57651.0,0.86692]
[1725240803443,1.85411192,57672.0,57651.0,0.86692]
[1725240804070,1.85811192,57672.0,57651.0,0.86692]
[1725240804522,1.85811192,57672.0,57656.0,0.173441]
[1725240805239,1.86011192,57672.0,57656.0,0.173441]
[1725240805490,1.85811192,57672.0,57654.0,0.346893]
[1725240805715,1.85811192,57672.0,57656.0,0.173441]
[1725240806379,1.86011192,57672.0,57656.0,0.173441]
[1725240807272,1.85511192,57672.0,57656.0,0.173441]
[1725240807534,1.86011192,57672.0,57656.0,0.173441]
[1725240808699,1.86011192,57672.0,57654.0,0.346893]
[1725240808939,1.86011192,57672.0,57655.0,0.173442]
[1725240809416,1.86011192,57672.0,57656.0,0.173441]
[1725240809652,2.02866356,57672.0,57656.0,0.173441]
[1725240810154,2.02866356,57672.0,57657.0,0.173439]
[1725240810400,2.02866356,57672.0,57661.0,0.0724]
[1725240812334,1.83011192,57672.0,57662.0,0.0915]
[1725240813237,1.83211192,57672.0,57662.0,0.0915]
[1725240813685,1.83420377,57672.0,57661.0,0.0724]
[1725240813932,1.83420377,57672.0,57658.0,0.0943]
[1725240814601,1.83411022,57672.0,57658.0,0.0943]
[1725240817527,1.83201837,57672.0,57658.0,0.0943]
[1725240817753,1.83201837,57672.0,57666.0,0.0732]
[1725240817974,1.64199537,57672.0,57666.0,0.0732]
[1725240818196,1.81054701,57672.0,57667.0,0.0904]
[1725240818417,1.81054701,57672.0,57666.0,0.0732]
[1725240820788,1.81254701,57672.0,57666.0,0.0732]
[1725240821040,1.81254701,57672.0,57664.0,0.0904]
[1725240821041,1.81463929,57672.0,57664.0,0.0904]
[1725240821284,1.81463929,57672.0,57662.0,0.0753]
[1725240823964,1.81054701,57672.0,57662.0,0.0753]
[1725240824926,1.64199537,57672.0,57662.0,0.0753]
[1725240826606,1.64199537,57672.0,57654.0,0.346896]
[1725240826607,1.15733678,57672.0,57671.0,0.1739987]
[1725240827600,0.78754878,57672.0,57671.0,0.1739987]
[1725240827840,0.006,57672.0,57671.0,0.1739987]
[1725240828075,0.16746033,57672.0,57671.0,0.1739987]
[1725240828311,0.68764233,57672.0,57671.0,0.1739987]
[1725240828543,1.03693851,57672.0,57671.0,0.1739987]
[1725240828777,1.1434349,57672.0,57671.0,0.1739987]
[1725240829012,1.03693851,57672.0,57671.0,0.1739987]
[1725240829237,1.13693851,57672.0,57671.0,0.1739987]
[1725240830226,1.13443033,57672.0,57671.0,0.1739987]
[1725240833314,0.78764233,57672.0,57671.0,0.1739987]
[1725240837130,0.44085433,57672.0,57671.0,0.1739987]
[1725240837561,0.78764233,57672.0,57671.0,0.1739987]
[1725240838697,0.44085433,57672.0,57671.0,0.1739987]
[1725240838921,0.44167233,57672.0,57671.0,0.1739987]
[1725240839063,0.78846033,57672.0,57671.0,0.1739987]
[1725240839293,1.2515745,57672.0,57671.0,0.1739987]
[1725240842115,0.44167233,57672.0,57671.0,0.1739987]
[1725240842404,0.447606,57672.0,57671.0,0.1739987]
[1725240842622,0.621,57672.0,57671.0,0.1739987]
[1725240842841,0.000818,57672.0,57671.0,0.1739987]
[1725240843081,0.000818,57672.0,57671.0,0.6941897]
[1725240845357,0.000818,57672.0,57671.0,1.0409837]
[1725240846963,0.000818,57672.0,57671.0,1.0459837]
[1725240847163,0.000818,57672.0,57671.0,1.0499837]
[1725240847696,0.000818,57672.0,57671.0,1.3967777]
[1725240847930,0.000818,57672.0,57671.0,1.3917777]
[1725240848639,0.000818,57672.0,57671.0,1.3877777]
[1725240849127,0.02902328,57672.0,57671.0,1.7405717]
[1725240849344,0.001818,57672.0,57671.0,0.7001897]
[1725240849584,0.001818,57672.0,57671.0,0.7091897]
[1725240849834,0.001818,57672.0,57671.0,1.0559837]
[1725240851548,0.02902384,57672.0,57671.0,0.7091897]
[1725240852025,0.02902384,57672.0,57671.0,0.1889987]
[1725240852268,0.02902384,57672.0,57671.0,0.0158987]
[1725240852269,1.66956084,57672.0,57671.0,0.0158987]
[1725240852525,0.002,57670.0,57663.0,0.1622]
[1725240852770,0.002,57670.0,57658.0,0.1622]
[1725240852771,0.173428,57661.0,57658.0,0.1622]
[1725240853017,0.173426,57662.0,57658.0,0.1622]
[1725240853258,0.173425,57662.0,57658.0,0.1622]
[1725240853500,0.17343,57661.0,57658.0,0.1622]
[1725240854410,0.17343,57661.0,57658.0,0.1712]
[1725240854912,0.02721282,57662.0,57661.0,0.173427]
[1725240855468,0.02821282,57662.0,57661.0,0.173427]
[1725240855706,0.02721282,57662.0,57661.0,0.173427]
[1725240855943,0.02721282,57662.0,57661.0,0.172427]
[1725240856183,0.02721282,57662.0,57661.0,0.171427]
[1725240856441,0.02821282,57662.0,57661.0,1.039735]
[1725240856689,0.001,57662.0,57661.0,0.692881]
[1725240856932,0.002,57662.0,57661.0,0.700881]
[1725240857389,0.002,57662.0,57661.0,0.354027]
[1725240857911,0.33688433,57662.0,57661.0,0.0854]
[1725240858133,0.68373233,57662.0,57661.0,0.008]
[1725240858351,1.06041642,57662.0,57661.0,0.008]
[1725240858797,0.71356842,57662.0,57661.0,0.008]
[1725240859021,1.17625686,57662.0,57661.0,0.008]
[1725240859240,1.76322886,57662.0,57661.0,0.008]
[1725240859466,2.1074539,57662.0,57661.0,0.008]
[1725240859687,1.9899069,57662.0,57661.0,0.008]
[1725240859907,0.173451,57653.0,57652.0,0.0711]
[1725240860622,0.520354,57653.0,57652.0,0.0711]
[1725240860844,0.54757073,57653.0,57652.0,0.0711]
[1725240861079,0.02721673,57653.0,57652.0,0.0711]
[1725240862931,0.02721673,57653.0,57652.0,0.248554]
[1725240863592,0.02721673,57653.0,57652.0,0.338154]
[1725240864511,0.02721673,57653.0,57652.0,0.685063]
[1725240865481,0.02721673,57653.0,57652.0,1.031972]
[1725240866145,0.1,57663.0,57656.0,0.173441]
[1725240866146,0.17343,57661.0,57656.0,0.173441]
[1725240866388,0.17343,57661.0,57652.0,0.511609]
[1725240866389,0.0026239,57659.0,57655.0,0.173443]
[1725240866621,0.16146033,57657.0,57652.0,0.338153]
[1725240866844,0.173443,57656.0,57652.0,0.1647]
[1725240867078,0.0026239,57656.0,57652.0,0.1607]
[1725240867311,0.0026239,57656.0,57652.0,0.334153]
[1725240867547,0.0026239,57656.0,57653.0,0.173451]
[1725240867816,0.0026239,57656.0,57652.0,0.1607]
[1725240868048,0.1760679,57656.0,57652.0,0.1607]
[1725240868814,0.1760679,57656.0,57652.0,0.334154]
[1725240869071,0.17344,57657.0,57653.0,0.17345]
[1725240869840,0.16408473,57665.0,57653.0,0.0734]
[1725240870076,0.3543249,57667.0,57658.0,0.346872]
[1725240870077,0.34682,57667.0,57658.0,0.346872]
[1725240870319,0.173416,57665.0,57660.0,0.173427]
[1725240870573,0.1,57664.0,57660.0,0.172427]
[1725240870802,0.1,57664.0,57661.0,0.173426]
[1725240871037,0.1,57664.0,57662.0,0.0718]
[1725240871306,0.02721337,57671.0,57661.0,0.173426]
[1725240871307,0.02721337,57671.0,57668.0,0.173404]
[1725240871536,0.02721337,57671.0,57670.0,0.0969]
[1725240872046,0.000818,57674.0,57670.0,0.0969]
[1725240872047,0.000818,57674.0,57671.0,0.173397]
[1725240872289,0.000818,57674.0,57671.0,0.938785]
[1725240872550,0.000818,57674.0,57671.0,1.03915296]
[1725240872781,0.000818,57674.0,57671.0,1.03115296]
[1725240873031,0.000818,57674.0,57671.0,1.018685]
[1725240873273,0.001818,57672.0,57671.0,1.018685]
[1725240873508,0.001818,57672.0,57671.0,0.1687]
[1725240873736,0.000818,57672.0,57671.0,0.355097]
[1725240873989,0.002818,57672.0,57671.0,0.356097]
[1725240874249,0.002818,57672.0,57671.0,0.355097]
[1725240874478,0.002818,57672.0,57671.0,0.356097]
[1725240874722,0.03102502,57672.0,57671.0,0.356097]
[1725240875171,0.002818,57672.0,57671.0,0.343097]
[1725240875420,0.002818,57672.0,57671.0,0.351097]
[1725240875645,0.03002493,57672.0,57671.0,0.351097]
[1725240875905,0.03002493,57672.0,57671.0,0.342097]
[1725240875906,0.02802493,57672.0,57671.0,0.342097]
[1725240876131,0.02802493,57672.0,57671.0,0.357097]
[1725240876132,0.02902493,57672.0,57671.0,0.357097]
[1725240876857,0.001818,57672.0,57671.0,0.357097]
[1725240877338,0.001818,57672.0,57671.0,1.050685]
[1725240878529,0.346712,57685.0,57674.0,0.346776]
[1725240878751,0.173362,57683.0,57678.0,0.173373]
[1725240879203,0.01257132,57691.0,57671.0,0.530491]
[1725240879204,0.16146033,57681.0,57671.0,0.530491]
[1725240879467,0.173386,57675.0,57671.0,0.350096]
[1725240879679,0.173386,57675.0,57671.0,0.342096]
[1725240879893,0.346762,57677.0,57674.0,0.001]
[1725240880107,0.173385,57675.0,57671.0,0.342096]
[1725240880534,0.173382,57676.0,57671.0,0.342096]
[1725240881015,0.173382,57676.0,57662.0,0.346844]
[1725240881016,0.16146033,57677.0,57666.0,0.0938]
[1725240881269,0.173395,57672.0,57667.0,0.173409]
[1725240881486,0.173401,57670.0,57666.0,0.0938]
[1725240881932,0.346794,57671.0,57666.0,0.0938]
[1725240882155,0.173405,57669.0,57666.0,0.0938]
[1725240882372,0.346794,57671.0,57666.0,0.0938]
[1725240882373,0.173409,57667.0,57666.0,0.0938]
[1725240882820,0.173409,57667.0,57666.0,0.1028]
[1725240883038,0.173409,57667.0,57663.0,0.0758]
[1725240883039,0.346818,57667.0,57663.0,0.0758]
[1725240883281,0.173418,57664.0,57663.0,0.0758]
[1725240884903,0.346866,57659.0,57654.0,0.0722]
[1725240885152,0.07943888,57664.0,57654.0,0.0722]
[1725240885153,0.520335,57655.0,57654.0,0.0722]
[1725240885612,0.173445,57655.0,57654.0,0.0722]
[1725240886606,0.173445,57655.0,57654.0,0.0752]
[1725240888036,0.173445,57655.0,57654.0,0.0732]
[1725240888261,0.173445,57655.0,57654.0,0.0752]
[1725240889403,0.34688,57657.0,57654.0,0.0752]
[1725240890122,0.173443,57656.0,57654.0,0.0752]
[1725240891044,0.173443,57656.0,57654.0,0.0722]
[1725240891734,0.173443,57656.0,57653.0,0.0974998]
[1725240892159,0.173443,57656.0,57654.0,0.001]
[1725240892578,0.173443,57656.0,57653.0,0.0974998]
[1725240893008,0.173443,57656.0,57653.0,0.0984998]
[1725240894929,0.173448,57655.0,57653.0,0.0984998]
[1725240895964,0.173448,57655.0,57653.0,0.0974998]
[1725240896213,0.173448,57655.0,57653.0,0.1004998]
[1725240896433,0.346867,57659.0,57653.0,0.1004998]
[1725240896658,0.173437,57658.0,57653.0,0.2739488]
[1725240896892,0.346867,57659.0,57653.0,0.2739488]
[1725240896893,0.173439,57657.0,57653.0,0.2739488]
[1725240897564,0.173439,57657.0,57653.0,0.2709488]
[1725240898221,0.173439,57657.0,57654.0,0.173448]
[1725240898442,0.346867,57659.0,57654.0,0.173448]
[1725240899095,0.173437,57658.0,57654.0,0.173448]
[1725240899523,0.176437,57658.0,57654.0,0.173448]
[1725240899786,0.346867,57659.0,57653.0,0.0974998]
[1725240899787,0.173446,57655.0,57653.0,0.0974998]
[1725240899976,0.173443,57656.0,57653.0,0.0008998]
[1725240900430,0.867242,57654.0,57653.0,0.0008998]
[1725240900879,0.86986869,57654.0,57653.0,0.0008998]
[1725240901815,0.86986869,57654.0,57653.0,0.0038998]
[1725240902746,0.94387987,57654.0,57653.0,0.0038998]
[1725240902964,0.86986869,57654.0,57653.0,0.0058998]
[1725240903864,0.86986869,57654.0,57653.0,0.0028998]
[1725240904314,0.86986869,57654.0,57653.0,0.0018998]
[1725240904776,0.86986869,57654.0,57653.0,0.0008998]
[1725240904995,0.86986869,57654.0,57653.0,0.0018998]
[1725240905659,0.86986869,57654.0,57653.0,0.0008998]
[1725240906851,0.87086869,57654.0,57653.0,0.0008998]
[1725240907320,1.26441364,57654.0,57653.0,0.0008998]
[1725240907543,1.26441364,57654.0,57650.0,0.0008998]
[1725240907544,0.535372,57651.0,57650.0,0.0008998]
[1725240907799,0.173508,57634.0,57631.0,0.0886]
[1725240908030,0.173508,57634.0,57630.0,0.50540786]
[1725240908031,0.867542,57634.0,57630.0,0.50540786]
[1725240908268,0.867542,57634.0,57626.0,0.0886]
[1725240908269,1.214559,57634.0,57626.0,0.0886]
[1725240908506,1.21718586,57634.0,57626.0,0.0886]
[1725240909667,1.4689207,57634.0,57622.0,0.0963]
[1725240909903,1.55920067,57634.0,57622.0,0.0963]
[1725240910175,1.55720067,57634.0,57622.0,0.0963]
[1725240910403,1.55820067,57634.0,57622.0,0.0963]
[1725240910616,1.58543032,57634.0,57622.0,0.0963]
[1725240910831,1.75598196,57634.0,57622.0,0.0963]
[1725240911072,0.347083,57623.0,57621.0,0.0769]
[1725240911285,0.173544,57622.0,57621.0,0.0769]
[1725240911536,0.520633,57622.0,57621.0,0.0769]
[1725240911761,0.16146033,57623.0,57615.0,0.0008987]
[1725240911762,0.347119,57617.0,57616.0,0.085987]
[1725240911985,0.173559,57617.0,57616.0,0.085987]
[1725240913799,0.174559,57617.0,57616.0,0.085987]
[1725240914045,0.20179268,57617.0,57616.0,0.085987]
[1725240914710,0.20279268,57617.0,57616.0,0.098987]
[1725240914951,0.02923368,57617.0,57616.0,0.098987]
[1725240915182,0.02923368,57617.0,57616.0,0.272549]
[1725240915410,0.02923368,57617.0,57616.0,0.098987]
[1725240915654,0.54295647,57617.0,57616.0,0.021987]
[1725240915893,0.522678,57617.0,57616.0,0.021987]
[1725240916106,0.869797,57617.0,57616.0,0.021987]
[1725240916328,0.520687,57616.0,57615.0,0.0008987]
[1725240916578,1.441719,57616.0,57615.0,0.0008987]
[1725240917232,1.46895541,57616.0,57615.0,0.0008987]
[1725240917456,1.98563205,57616.0,57615.0,0.0008987]
[1725240917672,1.71539741,57616.0,57615.0,0.0008987]
[1725240917890,1.69401741,57616.0,57615.0,0.0008987]
[1725240918108,1.69601741,57616.0,57615.0,0.0008987]
[1725240918554,1.37317341,57616.0,57615.0,0.0008987]
[1725240918767,1.36817341,57616.0,57615.0,0.0008987]
[1725240919009,1.37317341,57616.0,57615.0,0.0008987]
[1725240919439,1.36817341,57616.0,57615.0,0.0008987]
[1725240920324,1.02104841,57616.0,57615.0,0.0008987]
[1725240920529,1.14003636,57616.0,57615.0,0.0008987]
[1725240921196,0.173587,57608.0,57607.0,0.0772]
[1725240921412,0.173593,57606.0,57605.0,0.008998]
[1725240921664,0.2256697,57606.0,57605.0,0.008998]
[1725240922311,0.173593,57606.0,57605.0,0.008998]
[1725240922945,0.174593,57606.0,57605.0,0.008998]
[1725240923155,0.001,57606.0,57605.0,0.008998]
[1725240924265,0.173591,57607.0,57605.0,0.008998]
[1725240924475,0.001,57606.0,57605.0,0.008998]
[1725240925808,0.001,57606.0,57605.0,0.182594]
[1725240926257,0.002,57606.0,57605.0,0.182594]
[1725240926478,0.20082265,57609.0,57605.0,0.182594]
[1725240926701,0.002,57606.0,57605.0,0.182594]
[1725240926948,0.002,57606.0,57605.0,0.008998]
[1725240927169,0.02128227,57606.0,57605.0,0.008998]
[1725240927405,0.02128227,57606.0,57605.0,0.182594]
[1725240927633,0.001,57606.0,57605.0,0.182594]
[1725240927859,0.002,57606.0,57605.0,0.182594]
[1725240930249,0.002,57606.0,57605.0,0.008998]
[1725240930535,0.0096,57603.0,57595.0,0.008998]
[1725240930801,1.21534,57597.0,57595.0,0.008998]
[1725240931037,1.21534,57597.0,57581.0,0.173666]
[1725240931038,0.005,57590.0,57580.0,0.1653]
[1725240931284,0.005,57590.0,57571.0,0.34826349]
[1725240931285,0.86831,57583.0,57582.0,0.50540786]
[1725240931513,0.86831,57583.0,57576.0,0.1653]
[1725240931514,0.68245533,57582.0,57581.0,0.01163847]
[1725240931774,0.173666,57582.0,57577.0,0.173678]
[1725240931993,0.17367,57581.0,57576.0,0.338982]
[1725240932186,0.173672,57580.0,57576.0,0.1653]
[1725240932466,0.347337,57581.0,57576.0,0.1653]
[1725240932688,0.17368,57577.0,57576.0,0.1653]
[1725240933832,0.17368,57577.0,57571.0,0.17456549]
[1725240933833,0.173695,57572.0,57571.0,0.00086849]
[1725240934298,0.521086,57572.0,57571.0,0.00086849]
[1725240934973,0.521086,57572.0,57571.0,0.00738709]
[1725240935200,0.173695,57572.0,57571.0,0.00086849]
[1725240935644,0.173695,57572.0,57571.0,0.00738709]
[1725240935885,0.5731926,57572.0,57571.0,0.00086849]
[1725240936117,0.5741926,57572.0,57571.0,0.00086849]
[1725240936365,0.0531066,57572.0,57571.0,0.00086849]
[1725240936607,0.5751926,57572.0,57571.0,0.00086849]
[1725240936837,0.546086,57572.0,57571.0,0.00086849]
[1725240937061,0.523086,57572.0,57571.0,0.00086849]
[1725240937296,0.175695,57572.0,57571.0,0.00086849]
[1725240937743,0.002,57572.0,57571.0,0.00086849]
[1725240937968,0.002,57572.0,57571.0,0.00738709]
[1725240938737,0.002,57572.0,57571.0,0.17918709]
[1725240938963,0.002,57572.0,57571.0,0.70028209]
[1725240940472,0.002,57572.0,57571.0,1.04767909]
[1725240943514,0.002,57572.0,57571.0,1.39507609]
[1725240944382,0.002,57572.0,57571.0,1.74247309]
[1725240944888,0.002,57572.0,57571.0,1.39507609]
[1725240945376,0.002,57572.0,57571.0,1.04767909]
[1725240945599,0.002,57572.0,57571.0,0.70028209]
[1725240945819,0.002,57572.0,57571.0,0.70710281]
[1725240946255,0.17368,57578.0,57571.0,0.53340481]
[1725240946481,0.173683,57576.0,57571.0,0.54540481]
[1725240946710,0.173687,57575.0,57571.0,0.37170481]
[1725240946943,0.173683,57576.0,57572.0,0.172695]
[1725240947165,0.347351,57579.0,57573.0,0.17369]
[1725240947166,0.173679,57578.0,57573.0,0.17369]
[1725240947423,0.17368,57577.0,57573.0,0.18512082]
[1725240947679,0.174679,57578.0,57574.0,0.173688]
[1725240947921,0.174679,57578.0,57573.0,0.01243082]
[1725240947922,0.347361,57577.0,57573.0,0.01243082]
[1725240948166,0.173685,57576.0,57573.0,0.01243082]
[1725240948388,0.173685,57576.0,57574.0,0.01242702]
[1725240948610,0.347362,57577.0,57574.0,0.01242702]
[1725240948841,0.173684,57576.0,57572.0,0.181695]
[1725240949057,0.173684,57576.0,57575.0,0.01242321]
[1725240949199,0.173684,57576.0,57572.0,0.018]
[1725240949200,0.001,57576.0,57572.0,0.018]
[1725240949424,0.174684,57576.0,57575.0,0.01242321]
[1725240949631,0.17369,57574.0,57572.0,0.008]
[1725240949833,0.17369,57574.0,57571.0,0.17356939]
[1725240949834,0.521086,57572.0,57571.0,0.17356939]
[1725240950032,0.521086,57572.0,57571.0,0.00176939]
[1725240951088,0.868477,57572.0,57571.0,0.01576939]
[1725240951309,1.239868,57572.0,57571.0,0.01576939]
[1725240951459,1.41323144,57572.0,57571.0,0.01576939]
[1725240951672,1.41323144,57572.0,57571.0,0.02976939]
[1725240951673,1.41423144,57572.0,57571.0,0.02976939]
[1725240952330,2.38669444,57572.0,57571.0,0.01576939]
[1725240952579,2.11063244,57572.0,57571.0,0.01576939]
[1725240952799,1.91735244,57572.0,57571.0,0.02776939]
[1725240953018,1.91535244,57572.0,57571.0,0.00176939]
[1725240953243,1.91635244,57572.0,57571.0,0.01376939]
[1725240953451,1.91735244,57572.0,57571.0,0.02376939]
[1725240953664,1.91735244,57572.0,57571.0,0.00176939]
[1725240953665,1.91535244,57572.0,57571.0,0.00176939]
[1725240954127,1.91735244,57572.0,57571.0,0.01576939]
[1725240954555,1.91635244,57572.0,57571.0,0.00876939]
[1725240954775,0.005,57567.0,57559.0,0.0716]